bitfinex/quotes_BTCUSD_20250219
["timestamp","ask_amount","ask_price","bid_price","bid_amount"]
[1739950680767,0.17278579,95884.0,95883.0,0.3276]
[1739950683602,0.156439,95884.0,95883.0,0.3276]
[1739950683863,0.156439,95884.0,95883.0,0.003]
[1739950685230,0.0004254,95890.0,95875.0,0.02105808]
[1739950685401,0.156448,95879.0,95876.0,0.10250365]
[1739950685818,0.156448,95878.0,95877.0,0.00751034]
[1739950686329,0.156465,95868.0,95867.0,0.3254508]
[1739950686556,0.156465,95868.0,95867.0,0.0008508]
[1739950686756,0.156465,95868.0,95867.0,0.00836273]
[1739950686911,0.1925922,95868.0,95867.0,0.02174087]
[1739950687691,0.1925922,95868.0,95867.0,0.0008508]
[1739950688098,0.20894078,95868.0,95867.0,0.0008508]
[1739950688519,0.05247578,95868.0,95862.0,0.0008508]
[1739950688725,0.156473,95863.0,95862.0,0.0008508]
[1739950689913,0.208627,95865.0,95862.0,0.0008508]
[1739950690292,0.156473,95863.0,95862.0,0.0058508]
[1739950691458,0.156473,95863.0,95862.0,0.0008508]
[1739950691861,0.156473,95863.0,95862.0,0.0048508]
[1739950692063,0.156473,95863.0,95862.0,0.0008508]
[1739950692257,0.156471,95865.0,95862.0,0.0008508]
[1739950692457,0.05247578,95868.0,95862.0,0.0048508]
[1739950692743,0.156472,95864.0,95862.0,0.0008508]
[1739950693059,0.156473,95863.0,95862.0,0.0058508]
[1739950693421,0.156473,95863.0,95862.0,0.0008508]
[1739950693626,0.208624,95866.0,95862.0,0.0008508]
[1739950693832,0.156472,95864.0,95862.0,0.0008508]
[1739950694668,0.156472,95864.0,95862.0,0.0028508]
[1739950694868,0.05247578,95868.0,95862.0,0.0008508]
[1739950695139,0.156471,95864.0,95862.0,0.0008508]
[1739950695373,0.156468,95866.0,95862.0,0.0038508]
[1739950695574,0.15647,95865.0,95862.0,0.0008508]
[1739950695718,0.05247578,95868.0,95862.0,0.0048508]
[1739950695719,0.156469,95866.0,95862.0,0.0048508]
[1739950696165,0.156469,95866.0,95862.0,0.0008508]
[1739950696363,0.156469,95866.0,95862.0,0.0038508]
[1739950696543,0.156466,95867.0,95862.0,0.0038508]
[1739950697085,0.156468,95866.0,95862.0,0.0038508]
[1739950697255,0.06118752,95880.0,95862.0,0.0038508]
[1739950697578,0.208621,95868.0,95862.0,0.0038508]
[1739950697720,0.208621,95868.0,95862.0,0.0008508]
[1739950698111,0.156466,95867.0,95862.0,0.0008508]
[1739950698292,0.156469,95866.0,95862.0,0.0008508]
[1739950698492,0.156469,95866.0,95862.0,0.0038508]
[1739950699029,0.156471,95864.0,95862.0,0.0008508]
[1739950699199,0.156471,95864.0,95862.0,0.0028508]
[1739950699418,0.156471,95864.0,95862.0,0.0008508]
[1739950699631,0.15647,95865.0,95862.0,0.0008508]
[1739950699804,0.01634922,95864.0,95862.0,0.0028508]
[1739950701024,0.01634922,95864.0,95862.0,0.0008508]
[1739950701228,0.01634922,95864.0,95862.0,0.0028508]
[1739950701549,0.01634922,95864.0,95862.0,0.0008508]
[1739950701923,0.01634922,95864.0,95862.0,0.0038508]
[1739950702129,0.01634922,95864.0,95862.0,0.0008508]
[1739950703079,0.01634922,95864.0,95862.0,0.0038508]
[1739950703256,0.0004255,95865.0,95862.0,0.0038508]
[1739950703639,0.0004255,95865.0,95862.0,0.1603248]
[1739950704943,0.156464,95869.0,95862.0,0.1573248]
[1739950705140,0.156464,95869.0,95862.0,0.0048508]
[1739950705376,0.156464,95869.0,95863.0,0.156473]
[1739950705544,0.156461,95871.0,95863.0,0.156473]
[1739950706173,0.156462,95870.0,95862.0,0.1573248]
[1739950706367,0.156462,95870.0,95862.0,0.1593248]
[1739950706572,0.19264159,95870.0,95862.0,0.1573248]
[1739950707010,0.19264159,95870.0,95863.0,0.002]
[1739950707257,0.03617959,95870.0,95863.0,0.002]
[1739950707463,0.156461,95871.0,95863.0,0.158472]
[1739950707663,0.2086,95878.0,95864.0,0.156471]
[1739950707664,0.17560936,95875.0,95864.0,0.156471]
[1739950707963,0.15646,95871.0,95863.0,0.002]
[1739950708303,0.15646,95871.0,95863.0,0.156473]
[1739950708767,0.19236766,95871.0,95862.0,0.0008508]
[1739950708967,0.19236766,95871.0,95862.0,0.0038508]
[1739950709364,0.19236766,95871.0,95862.0,0.0008508]
[1739950710199,0.03590766,95871.0,95862.0,0.0018508]
[1739950710406,0.156459,95872.0,95862.0,0.0018508]
[1739950710638,0.156458,95873.0,95862.0,0.0018508]
[1739950710840,0.06118752,95872.0,95862.0,0.0018508]
[1739950711131,0.156456,95873.0,95862.0,0.0018508]
[1739950711532,0.01634895,95870.0,95862.0,0.0008508]
[1739950712880,0.01634895,95870.0,95863.0,0.156472]
[1739950713087,0.01634895,95870.0,95862.0,0.1573248]
[1739950713248,0.01634895,95870.0,95862.0,0.0008508]
[1739950713451,0.01634895,95870.0,95862.0,0.0018508]
[1739950714071,0.01634895,95870.0,95862.0,0.1583248]
[1739950714811,0.01634895,95870.0,95862.0,0.0008508]
[1739950715173,0.01634895,95870.0,95863.0,0.001]
[1739950715379,0.01634895,95870.0,95862.0,0.0008508]
[1739950715623,0.01634895,95870.0,95862.0,0.0018508]
[1739950715827,0.156465,95868.0,95862.0,0.0018508]
[1739950716191,0.01634895,95870.0,95862.0,0.0008508]
[1739950716397,0.01634895,95870.0,95863.0,0.001]
[1739950716526,0.01634895,95870.0,95862.0,0.0008508]
[1739950716942,0.01634895,95870.0,95862.0,0.0018508]
[1739950717606,0.156463,95869.0,95862.0,0.0018508]
[1739950717818,0.01634895,95870.0,95862.0,0.0018508]
[1739950718014,0.03550507,95871.0,95862.0,0.0008508]
[1739950718314,0.208614,95871.0,95862.0,0.0018508]
[1739950718487,0.06161302,95872.0,95862.0,0.0018508]
[1739950718687,0.06161302,95872.0,95862.0,0.0008508]
[1739950718870,0.06161302,95872.0,95862.0,0.0018508]
[1739950719068,0.156473,95863.0,95862.0,0.0018508]
[1739950719297,0.156473,95863.0,95862.0,0.0008508]
[1739950719515,0.156473,95863.0,95862.0,0.0018508]
[1739950719663,0.156473,95863.0,95862.0,0.0008508]
[1739950721036,0.17282206,95863.0,95862.0,0.0008508]
[1739950721921,0.17282206,95863.0,95862.0,0.0038508]
[1739950722699,0.156473,95863.0,95862.0,0.0008508]
[1739950722873,0.156473,95863.0,95862.0,0.0038508]
[1739950723012,0.156473,95863.0,95862.0,0.0008508]
[1739950724489,0.156473,95863.0,95862.0,0.0048508]
[1739950724704,0.156473,95863.0,95862.0,0.0008508]
[1739950725140,0.156473,95863.0,95862.0,0.0028508]
[1739950725364,0.156473,95863.0,95862.0,0.0008508]
[1739950725491,0.156473,95863.0,95862.0,0.0018508]
[1739950725902,0.156473,95863.0,95862.0,0.0008508]
[1739950726163,0.156473,95863.0,95862.0,0.0018508]
[1739950727021,0.17282332,95863.0,95862.0,0.0018508]
[1739950727443,0.17282332,95863.0,95862.0,0.0008508]
[1739950727646,0.17282332,95863.0,95862.0,0.0018508]
[1739950727982,0.17282332,95863.0,95862.0,0.0008508]
[1739950728340,0.17282332,95863.0,95862.0,0.0018508]
[1739950728541,0.17282332,95863.0,95862.0,0.0008508]
[1739950728946,0.17282332,95863.0,95862.0,0.0018508]
[1739950733752,0.17282332,95863.0,95862.0,0.0008508]
[1739950733948,0.17282332,95863.0,95862.0,0.0018508]
[1739950734898,0.17282332,95863.0,95862.0,0.0008508]
[1739950736948,0.156473,95863.0,95862.0,0.0008508]
[1739950739821,0.17282375,95863.0,95862.0,0.0008508]
[1739950747475,0.156473,95863.0,95862.0,0.0008508]
[1739950748789,0.156473,95863.0,95862.0,0.0018508]
[1739950749507,0.156473,95863.0,95862.0,0.00930034]
[1739950750108,0.156473,95863.0,95862.0,0.00830034]
[1739950750668,0.17282341,95863.0,95862.0,0.00830034]
[1739950751067,0.17282341,95863.0,95862.0,0.01030034]
[1739950752026,0.17282341,95863.0,95862.0,0.0028508]
[1739950753259,0.156473,95863.0,95862.0,0.0028508]
[1739950754892,0.156473,95863.0,95862.0,0.01030034]
[1739950756451,0.17282275,95863.0,95862.0,0.01030034]
[1739950757578,0.17282275,95863.0,95862.0,0.0028508]
[1739950763239,0.15621466,95863.0,95862.0,0.0028508]
[1739950764354,0.15621466,95863.0,95862.0,0.01030034]
[1739950764529,0.15621466,95863.0,95862.0,0.0028508]
[1739950766275,0.17256452,95863.0,95862.0,0.0028508]
[1739950769662,0.17256452,95863.0,95862.0,0.0008508]
[1739950772960,0.16197866,95865.0,95862.0,0.0008508]
[1739950773553,0.147753,95863.0,95862.0,0.0008508]
[1739950777782,0.16410359,95863.0,95862.0,0.0008508]
[1739950781354,0.16410359,95863.0,95862.0,0.0018508]
[1739950782632,0.16410359,95863.0,95862.0,0.0008508]
[1739950783169,0.16410359,95863.0,95862.0,0.00930034]
[1739950783376,0.147753,95863.0,95862.0,0.00930034]
[1739950783616,0.147753,95863.0,95862.0,0.0018508]
[1739950784413,0.0004255,95865.0,95862.0,0.0018508]
[1739950784620,0.156473,95863.0,95862.0,0.0018508]
[1739950786940,0.156473,95863.0,95862.0,0.00930034]
[1739950788044,0.17282359,95863.0,95862.0,0.0018508]
[1739950790440,0.17282359,95863.0,95862.0,0.0008508]
[1739950793278,0.0004255,95865.0,95862.0,0.0008508]
[1739950793476,0.156473,95863.0,95862.0,0.05600034]
[1739950794316,0.208622,95868.0,95862.0,0.05600034]
[1739950795024,0.208624,95866.0,95862.0,0.05600034]
[1739950795224,0.156471,95864.0,95862.0,0.05600034]
[1739950795427,0.15647,95865.0,95862.0,0.05600034]
[1739950796407,0.17281974,95865.0,95862.0,0.05600034]
[1739950796782,0.156472,95864.0,95862.0,0.05600034]
[1739950797158,0.0004255,95863.0,95862.0,0.04331047]
[1739950797664,0.0004255,95863.0,95862.0,0.05076001]
[1739950798855,0.0004255,95863.0,95862.0,0.04331047]
[1739950799054,0.0004255,95863.0,95862.0,0.05076001]
[1739950800214,0.0004255,95863.0,95862.0,0.20723401]
[1739950800514,0.0004255,95863.0,95862.0,0.05076001]
[1739950802685,0.0004255,95863.0,95862.0,0.20923401]
[1739950803005,0.0004255,95863.0,95862.0,0.05276001]
[1739950803453,0.0004255,95863.0,95862.0,0.20923401]
[1739950804151,0.0004255,95863.0,95862.0,0.05276001]
[1739950804431,0.0004255,95863.0,95862.0,0.20923401]
[1739950804850,0.0004255,95863.0,95862.0,0.05276001]
[1739950805618,0.0004255,95863.0,95862.0,0.20923401]
[1739950805821,0.0004255,95863.0,95862.0,0.05276001]
[1739950806023,0.0004255,95863.0,95862.0,0.20923401]
[1739950806441,0.0004255,95863.0,95862.0,0.05076001]
[1739950806839,0.0004255,95863.0,95862.0,0.05176001]
[1739950807043,0.0004255,95863.0,95862.0,0.20823401]
[1739950808547,0.0004255,95863.0,95862.0,0.31158866]
[1739950816262,0.0167747,95863.0,95862.0,0.31158866]
[1739950816705,0.0004255,95863.0,95862.0,0.31158866]
[1739950816855,0.0004255,95863.0,95862.0,0.38758866]
[1739950818141,0.0004255,95863.0,95862.0,0.38658866]
[1739950818463,0.0004255,95863.0,95862.0,0.38858866]
[1739950818899,0.0004255,95863.0,95862.0,0.38658866]
[1739950819234,0.0004255,95863.0,95862.0,0.38958866]
[1739950819541,0.0004255,95863.0,95862.0,0.38658866]
[1739950819720,0.0004255,95863.0,95862.0,0.38858866]
[1739950820034,0.01677431,95863.0,95862.0,0.38658866]
[1739950821333,0.01677431,95863.0,95862.0,0.38958866]
[1739950821536,0.01677431,95863.0,95862.0,0.38658866]
[1739950821739,0.01677431,95863.0,95862.0,0.39058866]
[1739950822102,0.01677431,95863.0,95862.0,0.38658866]
[1739950822301,0.01677431,95863.0,95862.0,0.39058866]
[1739950822961,0.0004255,95863.0,95862.0,0.39058866]
[1739950824201,0.0004255,95863.0,95862.0,0.38658866]
[1739950824636,0.0004255,95863.0,95862.0,0.39058866]
[1739950824830,0.0004255,95863.0,95862.0,0.38658866]
[1739950825271,0.0004255,95863.0,95862.0,0.39258866]
[1739950827449,0.0004255,95863.0,95862.0,0.38658866]
[1739950827643,0.0004255,95863.0,95862.0,0.39258866]
[1739950829449,0.0004255,95863.0,95862.0,0.71718866]
[1739950836866,0.0004255,95863.0,95862.0,0.71118866]
[1739950837267,0.0004255,95863.0,95862.0,0.71718866]
[1739950837582,0.0004255,95863.0,95862.0,0.71118866]
[1739950837714,0.0004255,95863.0,95862.0,0.71818866]
[1739950840799,0.0004255,95872.0,95862.0,0.56171466]
[1739950840942,0.0004255,95872.0,95871.0,0.15646]
[1739950841143,0.0004255,95872.0,95871.0,0.25896365]
[1739950841339,0.0004255,95872.0,95871.0,0.26653453]
[1739950843114,0.0004255,95872.0,95871.0,0.34893453]
[1739950843319,0.0004255,95872.0,95871.0,0.35393453]
[1739950843881,0.0004255,95872.0,95871.0,0.40113453]
[1739950847134,0.0004255,95872.0,95871.0,0.74642904]
[1739950850969,0.0004255,95872.0,95871.0,0.74142904]
[1739950851408,0.0004255,95872.0,95871.0,0.74742904]
[1739950853641,0.0004255,95872.0,95871.0,0.74142904]
[1739950853858,0.0004255,95872.0,95871.0,0.74742904]
[1739950854197,0.0004255,95872.0,95871.0,0.74142904]
[1739950854421,0.0004255,95872.0,95871.0,0.74742904]
[1739950858517,0.11736845,95896.0,95871.0,0.59096904]
[1739950858671,4.353e-05,95884.0,95883.0,0.15644]
[1739950858874,4.353e-05,95884.0,95883.0,0.26651288]
[1739950860645,4.353e-05,95884.0,95883.0,0.26851288]
[1739950862405,4.353e-05,95884.0,95883.0,0.00956923]
[1739950862760,0.15648253,95884.0,95883.0,0.00956923]
[1739950863092,0.15648253,95884.0,95883.0,0.002]
[1739950863884,4.353e-05,95884.0,95875.0,0.156453]
[1739950864099,0.156442,95882.0,95876.0,0.11007378]
[1739950865088,0.15648353,95884.0,95876.0,0.11007378]
[1739950865329,4.353e-05,95884.0,95876.0,0.11307378]
[1739950865773,4.353e-05,95884.0,95878.0,0.156447]
[1739950865994,4.353e-05,95884.0,95879.0,0.156446]
[1739950866248,0.15648253,95884.0,95879.0,0.00756972]
[1739950866461,0.01634725,95883.0,95879.0,0.00756972]
[1739950866685,0.01634725,95883.0,95879.0,0.16401672]
[1739950868019,0.01634725,95883.0,95879.0,0.16501672]
[1739950868358,0.01634725,95883.0,95880.0,0.156445]
[1739950868549,0.01634725,95883.0,95879.0,0.00756972]
[1739950868751,0.01634725,95883.0,95881.0,0.00756944]
[1739950868930,0.01634725,95883.0,95880.0,0.00756958]
[1739950869134,0.01634725,95883.0,95882.0,0.00756931]
[1739950869349,0.01634725,95883.0,95881.0,0.00756944]
[1739950869550,0.01634725,95883.0,95882.0,0.00756931]
[1739950869954,0.01634725,95883.0,95880.0,0.156445]
[1739950870304,0.01634725,95883.0,95881.0,0.00756944]
[1739950871568,0.01634725,95883.0,95881.0,0.00856944]
[1739950871742,0.01634725,95883.0,95881.0,0.001]
[1739950871929,0.01634725,95883.0,95882.0,0.00756931]
[1739950872128,0.16568627,95888.0,95882.0,0.00756931]
[1739950872370,0.16568627,95888.0,95881.0,0.001]
[1739950872586,0.156437,95885.0,95883.0,0.00756917]
[1739950872784,0.156436,95886.0,95882.0,0.00756931]
[1739950872953,0.156436,95886.0,95881.0,0.001]
[1739950873203,0.156436,95886.0,95883.0,0.00756917]
[1739950873357,0.15,95892.0,95882.0,0.00756931]
[1739950873709,0.156438,95885.0,95883.0,0.00756917]
[1739950874087,0.156438,95885.0,95876.0,0.31195445]
[1739950874411,0.156438,95885.0,95877.0,0.00756999]
[1739950874619,0.156438,95885.0,95877.0,0.11007364]
[1739950877131,0.156435,95886.0,95878.0,0.156447]
[1739950877333,0.156437,95885.0,95877.0,0.11007364]
[1739950877537,0.156437,95885.0,95879.0,0.00756972]
[1739950877713,0.156437,95885.0,95878.0,0.00756985]
[1739950877916,0.156437,95885.0,95880.0,0.00756958]
[1739950878115,0.156437,95885.0,95879.0,0.00756972]
[1739950878341,0.156437,95885.0,95881.0,0.00756944]
[1739950878497,0.156437,95885.0,95880.0,0.00756958]
[1739950878701,0.156437,95885.0,95882.0,0.00756931]
[1739950878949,0.156437,95885.0,95881.0,0.00756944]
[1739950879153,0.156437,95885.0,95883.0,0.00756917]
[1739950879517,0.156437,95885.0,95882.0,0.00756931]
[1739950879693,0.156437,95885.0,95884.0,0.00756903]
[1739950880019,0.156437,95885.0,95879.0,0.002]
[1739950880370,0.156437,95885.0,95880.0,0.00756958]
[1739950880817,0.22492519,95888.0,95882.0,0.002]
[1739950881019,0.156437,95885.0,95881.0,0.00756944]
[1739950881377,0.22492519,95888.0,95877.0,0.25980445]
[1739950881378,0.01634719,95888.0,95883.0,0.15644]
[1739950881759,0.01634719,95888.0,95884.0,0.00756903]
[1739950882352,0.01634719,95888.0,95880.0,0.208592]
[1739950882672,0.01634719,95888.0,95885.0,0.00756889]
[1739950882969,0.01634719,95888.0,95882.0,0.156442]
[1739950882970,0.01634719,95888.0,95886.0,0.00756876]
[1739950883273,0.156429,95890.0,95886.0,0.00756876]
[1739950883473,0.358569,95892.0,95878.0,0.208598]
[1739950883797,0.156427,95891.0,95883.0,0.156439]
[1739950883932,0.358569,95892.0,95882.0,0.156442]
[1739950884118,0.358569,95892.0,95884.0,0.00756903]
[1739950884320,0.156427,95891.0,95883.0,0.16400917]
[1739950884541,0.15643,95890.0,95885.0,0.00756889]
[1739950884774,0.24157989,95893.0,95879.0,0.10250365]
[1739950884945,0.156427,95891.0,95886.0,0.00756876]
[1739950885155,0.156427,95891.0,95884.0,0.156438]
[1739950885350,0.156427,95891.0,95887.0,0.00756862]
[1739950885699,0.15643,95890.0,95881.0,0.156442]
[1739950885900,0.15643,95890.0,95888.0,0.00756848]
[1739950886205,0.15643,95890.0,95882.0,0.156441]
[1739950886360,0.15643,95890.0,95889.0,0.00756834]
[1739950886563,0.26975452,95892.0,95882.0,0.156441]
[1739950886989,0.06118752,95892.0,95883.0,0.00756917]
[1739950887254,0.156433,95888.0,95883.0,0.00756917]
[1739950887469,0.156433,95888.0,95880.0,0.156444]
[1739950887617,0.156433,95888.0,95884.0,0.00756903]
[1739950887963,0.01634655,95887.0,95885.0,0.00756889]
[1739950888445,0.01634655,95887.0,95881.0,0.156443]
[1739950888851,0.01634655,95887.0,95882.0,0.00756931]
[1739950889179,0.01634655,95887.0,95881.0,0.156443]
[1739950889383,0.01634655,95887.0,95883.0,0.00756917]
[1739950889507,0.01634655,95887.0,95882.0,0.16401031]
[1739950889708,0.01634655,95887.0,95884.0,0.00756903]
[1739950890487,0.01634655,95887.0,95882.0,0.156442]
[1739950890684,0.01634655,95887.0,95885.0,0.00756889]
[1739950890887,0.01634655,95887.0,95886.0,0.00756876]
[1739950891091,0.01634655,95887.0,95883.0,0.15644]
[1739950891297,0.01634655,95887.0,95881.0,0.156442]
[1739950891470,0.01634655,95887.0,95882.0,0.00756931]
[1739950891639,0.01634655,95887.0,95881.0,0.156442]
[1739950892001,0.01634655,95887.0,95882.0,0.00756931]
[1739950892435,0.17278055,95887.0,95880.0,0.31109565]
[1739950892664,0.01634655,95887.0,95883.0,0.00756917]
[1739950892868,0.156437,95886.0,95883.0,0.00756917]
[1739950893076,0.156437,95886.0,95880.0,0.10250365]
[1739950893292,0.156437,95886.0,95884.0,0.00756903]
[1739950893507,0.156438,95885.0,95880.0,0.10250365]
[1739950893656,0.208572,95891.0,95880.0,0.10250365]
[1739950893872,0.156436,95886.0,95880.0,0.10250365]
[1739950894079,0.156436,95886.0,95883.0,0.002]
[1739950894237,0.156436,95886.0,95880.0,0.10250365]
[1739950894440,0.156436,95886.0,95880.0,0.25894865]
[1739950894642,0.156436,95886.0,95884.0,0.002]
[1739950894900,0.156436,95886.0,95880.0,0.25894865]
[1739950895928,0.156437,95885.0,95880.0,0.10250365]
[1739950896112,0.208579,95887.0,95883.0,0.002]
[1739950896330,0.156439,95884.0,95883.0,0.002]
[1739950896560,0.156439,95884.0,95880.0,0.10250365]
[1739950896739,0.156439,95884.0,95880.0,0.10450365]
[1739950897079,0.156439,95884.0,95880.0,0.10250365]
[1739950897475,0.156439,95884.0,95883.0,0.001]
[1739950897677,0.17278582,95884.0,95880.0,0.10250365]
[1739950898003,0.17278582,95884.0,95880.0,0.10450365]
[1739950898209,0.156441,95883.0,95880.0,0.10450365]
[1739950898433,0.01634682,95884.0,95880.0,0.10450365]
[1739950899067,0.01634682,95884.0,95880.0,0.10250365]
[1739950899492,0.15644,95883.0,95880.0,0.10250365]
[1739950899702,0.17278582,95884.0,95880.0,0.10250365]
[1739950899901,0.01634682,95884.0,95880.0,0.10250365]
[1739950900078,0.15644,95883.0,95880.0,0.10250365]
[1739950900618,0.15644,95883.0,95880.0,0.10450365]
[1739950900931,0.15644,95883.0,95880.0,0.10250365]
[1739950901106,0.15644,95883.0,95880.0,0.10350365]
[1739950901715,0.01634682,95884.0,95880.0,0.10350365]
[1739950902549,0.01634682,95884.0,95880.0,0.25894865]
[1739950902679,0.01634682,95884.0,95880.0,0.10350365]
[1739950903104,0.0004254,95888.0,95880.0,0.10250365]
[1739950903305,0.156437,95885.0,95880.0,0.10250365]
[1739950903546,0.0004254,95888.0,95880.0,0.10250365]
[1739950903752,0.156438,95885.0,95880.0,0.10250365]
[1739950904565,0.156435,95887.0,95880.0,0.25894865]
[1739950905147,0.0004254,95888.0,95881.0,0.156443]
[1739950905366,0.0004254,95888.0,95880.0,0.10250365]
[1739950905753,0.156434,95887.0,95881.0,0.156442]
[1739950906193,0.0004254,95888.0,95880.0,0.10250365]
[1739950906522,0.0004254,95888.0,95881.0,0.156443]
[1739950906725,0.1568574,95888.0,95881.0,0.156443]
[1739950907879,0.01634658,95887.0,95881.0,0.156443]
[1739950908059,0.17278058,95887.0,95881.0,0.156443]
[1739950908258,0.01634658,95887.0,95881.0,0.156443]
[1739950908459,0.01634658,95887.0,95882.0,0.208589]
[1739950908688,0.01634658,95887.0,95884.0,0.156437]
[1739950909245,0.01634658,95887.0,95880.0,0.10335445]
[1739950909451,0.01634658,95887.0,95883.0,0.15644]
[1739950910266,0.01634658,95887.0,95884.0,0.157438]
[1739950910462,0.01634658,95887.0,95883.0,0.156439]
[1739950910631,0.01634658,95887.0,95883.0,0.15644]
[1739950910995,0.01634658,95887.0,95883.0,0.001]
[1739950911219,0.01634658,95887.0,95884.0,0.156437]
[1739950912287,0.01634658,95887.0,95884.0,0.001]
[1739950912721,0.17278058,95887.0,95881.0,0.156443]
[1739950912920,0.01634658,95887.0,95884.0,0.001]
[1739950915648,0.01634658,95887.0,95882.0,0.156441]
[1739950916006,0.01634658,95887.0,95884.0,0.002]
[1739950916949,0.0004254,95888.0,95882.0,0.208588]
[1739950917142,0.0004254,95888.0,95882.0,0.002]
[1739950917380,0.0004254,95888.0,95884.0,0.156438]
[1739950917512,0.0004254,95888.0,95884.0,0.158438]
[1739950918328,0.0004254,95888.0,95884.0,0.002]
[1739950918755,0.0004254,95888.0,95882.0,0.156441]
[1739950918991,0.0004254,95888.0,95882.0,0.15644]
[1739950919193,0.1568574,95888.0,95882.0,0.15744]
[1739950919394,0.1568574,95888.0,95882.0,0.15644]
[1739950919573,0.1568574,95888.0,95884.0,0.001]
[1739950920300,0.0004254,95888.0,95884.0,0.001]
[1739950920657,0.0004254,95888.0,95884.0,0.157438]
[1739950920856,0.0004254,95888.0,95884.0,0.001]
[1739950921138,0.0004254,95888.0,95884.0,0.156438]
[1739950921309,0.01677189,95888.0,95883.0,0.15644]
[1739950921730,0.17320389,95888.0,95883.0,0.15644]
[1739950922097,0.17320389,95888.0,95881.0,0.0008508]
[1739950922317,0.01677189,95888.0,95884.0,0.001]
[1739950922624,0.01677189,95888.0,95882.0,0.208589]
[1739950922962,0.01677189,95888.0,95885.0,0.156436]
[1739950923322,0.0004254,95888.0,95885.0,0.156436]
[1739950924268,0.0004254,95888.0,95882.0,0.208589]
[1739950924579,0.0004254,95888.0,95886.0,0.156435]
[1739950925963,0.0004254,95888.0,95884.0,0.208584]
[1739950926169,0.0004254,95888.0,95881.0,0.0008508]
[1739950926374,0.01677181,95888.0,95884.0,0.156438]
[1739950927079,0.01677181,95888.0,95886.0,0.001]
[1739950927310,0.01677181,95888.0,95887.0,0.156434]
[1739950929707,0.01677181,95888.0,95887.0,0.157434]
[1739950931847,0.01677181,95888.0,95887.0,0.001]
[1739950932058,0.01677181,95888.0,95887.0,0.157434]
[1739950932227,0.01677181,95888.0,95887.0,0.001]
[1739950932806,0.01677181,95888.0,95886.0,0.27954405]
[1739950933006,0.01677181,95888.0,95887.0,0.001]
[1739950933226,0.0004254,95888.0,95887.0,0.001]
[1739950935766,0.0004254,95888.0,95886.0,0.27954405]
[1739950936166,0.0004254,95888.0,95887.0,0.001]
[1739950936415,0.0004254,95888.0,95886.0,0.27954405]
[1739950936618,0.0004254,95888.0,95887.0,0.002]
[1739950936973,0.0004254,95888.0,95886.0,0.12310905]
[1739950937168,0.0004254,95888.0,95886.0,0.12510905]
[1739950937408,0.0004254,95888.0,95886.0,0.12310905]
[1739950937817,0.0004254,95888.0,95887.0,0.002]
[1739950937973,0.0004254,95888.0,95887.0,0.158434]
[1739950938199,0.0004254,95888.0,95887.0,0.002]
[1739950938998,0.0004254,95888.0,95886.0,0.12310905]
[1739950939402,0.0004254,95888.0,95886.0,0.12510905]
[1739950939611,0.0004254,95888.0,95886.0,0.12310905]
[1739950939819,0.0004254,95888.0,95886.0,0.27954305]
[1739950940036,0.0004254,95888.0,95887.0,0.002]
[1739950940344,0.0004254,95888.0,95886.0,0.27954305]
[1739950940534,0.0004254,95888.0,95886.0,0.28054305]
[1739950940766,0.0004254,95888.0,95886.0,0.27954305]
[1739950942161,0.0004254,95888.0,95887.0,0.001]
[1739950942319,0.0004254,95888.0,95886.0,0.27954305]
[1739950942732,0.0004254,95888.0,95886.0,0.10350365]
[1739950943076,0.0004254,95888.0,95884.0,0.0008508]
[1739950943237,0.156437,95885.0,95884.0,0.0008508]
[1739950946263,0.17278338,95885.0,95884.0,0.0008508]
[1739950946879,0.0004254,95888.0,95884.0,0.0008508]
[1739950947766,0.156437,95885.0,95884.0,0.0008508]
[1739950951776,0.157437,95885.0,95884.0,0.0008508]
[1739950952985,0.156437,95885.0,95884.0,0.0008508]
[1739950954796,0.157437,95885.0,95884.0,0.0008508]
[1739950955542,0.156437,95885.0,95884.0,0.0008508]
[1739950955881,0.157437,95885.0,95884.0,0.0008508]
[1739950956578,0.1737835,95885.0,95884.0,0.0008508]
[1739950961662,0.1727835,95885.0,95884.0,0.0008508]
[1739950962130,0.1737835,95885.0,95884.0,0.0008508]
[1739950963325,0.09538735,95887.0,95884.0,0.0008508]
[1739950963523,0.0004254,95887.0,95884.0,0.0008508]
[1739950963971,0.156435,95886.0,95885.0,0.00756814]
[1739950964328,0.156437,95885.0,95884.0,0.0008508]
[1739950966070,0.157437,95885.0,95884.0,0.0008508]
[1739950967198,0.156437,95885.0,95884.0,0.0008508]
[1739950968725,0.156437,95885.0,95884.0,0.0018508]
[1739950974419,0.156437,95885.0,95884.0,0.0008508]
[1739950974827,0.157437,95885.0,95884.0,0.0008508]
[1739950975030,0.001,95885.0,95884.0,0.0008508]
[1739950975467,0.001,95885.0,95884.0,0.00841908]
[1739950975468,0.157437,95885.0,95884.0,0.00841908]
[1739950975711,0.157437,95885.0,95884.0,0.0008508]
[1739950979559,0.17377759,95885.0,95884.0,0.0008508]
[1739950983070,0.01734059,95885.0,95884.0,0.0008508]
[1739950983267,0.001,95885.0,95884.0,0.0008508]
[1739950983615,0.157437,95885.0,95884.0,0.0008508]
[1739950984149,0.156437,95885.0,95884.0,0.0008508]
[1739950984551,0.001,95885.0,95884.0,0.18255445]
[1739950984949,0.001,95885.0,95884.0,0.19012273]
[1739950985698,0.0004254,95887.0,95884.0,0.19012273]
[1739950985927,0.0004254,95887.0,95885.0,0.25894065]
[1739950986178,0.0004254,95887.0,95885.0,0.10250365]
[1739950986354,0.0004254,95887.0,95886.0,0.00756801]
[1739950986555,0.0004254,95887.0,95886.0,0.11007166]
[1739950987610,0.13834792,95894.0,95886.0,0.11007166]
[1739950987811,4.353e-05,95894.0,95887.0,0.10250365]
[1739950988345,4.353e-05,95894.0,95888.0,0.00756773]
[1739950988518,4.353e-05,95894.0,95888.0,0.11007138]
[1739950990079,0.15646653,95894.0,95888.0,0.11007138]
[1739950990318,0.18962049,95894.0,95888.0,0.11007138]
[1739950990488,0.18962049,95894.0,95888.0,0.11107138]
[1739950991481,0.03319749,95894.0,95888.0,0.11107138]
[1739950992632,0.03362289,95894.0,95888.0,0.11107138]
[1739950993071,0.19004489,95894.0,95888.0,0.11107138]
[1739950993366,0.03362289,95894.0,95888.0,0.11107138]
[1739950995059,0.14127211,95898.0,95888.0,0.11107138]
[1739950995266,0.06118752,95900.0,95888.0,0.11107138]
[1739950995590,0.156419,95896.0,95888.0,0.11107138]
[1739950996240,0.156421,95895.0,95888.0,0.11007138]
[1739950996536,0.22489523,95898.0,95888.0,0.11007138]
[1739950996743,0.156419,95896.0,95888.0,0.11007138]
[1739950997165,0.001,95896.0,95888.0,0.11007138]
[1739950997353,0.156422,95894.0,95888.0,0.11007138]